[Event "Titled Tuesday Blitz March 29 Late 2022"]
[White "Aggelis, Nikolaos"]
[Black "Li, Ben"]
[WhiteFideId "4213220"]
[BlackFideId "2089980"]
[WhiteElo "2442"]
[BlackElo "2759"]
[Result "1-0"]
[Round "01"]
[TimeControl "180+1"]
[Date "2022.03.30"]
[WhiteClock "0:00:33"]
[BlackClock "0:00:38"]

1. d4 {[%clk 0:03:00]}  d5 {[%clk 0:03:00]} 2. g3 {[%clk 0:02:52]}  Nf6 {[%clk 0:02:59]} 3. Nf3 {[%clk 0:02:52]}  c5 {[%clk 0:02:59]} 4. Bg2 {[%clk 0:02:52]}  cxd4 {[%clk 0:02:58]} 5. O-O {[%clk 0:02:52]}  h6 {[%clk 0:02:58]} 6. b3 {[%clk 0:02:52]}  Nc6 {[%clk 0:02:52]} 7. Nxd4 {[%clk 0:02:49]}  e5 {[%clk 0:02:37]} 8. Nxc6 {[%clk 0:02:50]}  bxc6 {[%clk 0:02:38]} 9. Bb2 {[%clk 0:02:50]}  Bd6 {[%clk 0:02:37]} 10. c4 {[%clk 0:02:50]}  Be6 {[%clk 0:02:35]} 11. Nc3 {[%clk 0:02:47]}  Bc7 {[%clk 0:02:32]} 12. Na4 {[%clk 0:02:43]}  O-O {[%clk 0:02:31]} 13. Qc2 {[%clk 0:02:40]}  Rc8 {[%clk 0:02:29]} 14. Rfd1 {[%clk 0:02:38]}  Bd6 {[%clk 0:02:27]} 15. Rac1 {[%clk 0:02:34]}  d4 {[%clk 0:02:27]} 16. c5 {[%clk 0:02:27]}  Bb8 {[%clk 0:02:26]} 17. e3 {[%clk 0:02:27]}  Bd5 {[%clk 0:02:23]} 18. exd4 {[%clk 0:02:26]}  e4 {[%clk 0:02:24]} 19. Nc3 {[%clk 0:02:21]}  Re8 {[%clk 0:02:23]} 20. Re1 {[%clk 0:02:21]}  Qd7 {[%clk 0:02:12]} 21. Nxe4 {[%clk 0:02:19]}  Nxe4 {[%clk 0:02:10]} 22. Bxe4 {[%clk 0:02:20]}  Rxe4 {[%clk 0:02:10]} 23. Rxe4 {[%clk 0:02:20]}  Qh3 {[%clk 0:02:03]} 24. f3 {[%clk 0:02:08]}  Bxe4 {[%clk 0:02:03]} 25. fxe4 {[%clk 0:01:59]}  Re8 {[%clk 0:02:03]} 26. Qg2 {[%clk 0:01:52]}  Qxg2+ {[%clk 0:01:51]} 27. Kxg2 {[%clk 0:01:51]}  Rxe4 {[%clk 0:01:51]} 28. Kf3 {[%clk 0:01:38]}  f5 {[%clk 0:01:52]} 29. Bc3 {[%clk 0:01:28]}  Kf7 {[%clk 0:01:51]} 30. Re1 {[%clk 0:01:28]}  Rxe1 {[%clk 0:01:50]} 31. Bxe1 {[%clk 0:01:27]}  Ke6 {[%clk 0:01:51]} 32. Ke3 {[%clk 0:01:20]}  g5 {[%clk 0:01:49]} 33. Kd3 {[%clk 0:01:20]}  Kd5 {[%clk 0:01:50]} 34. b4 {[%clk 0:01:19]}  h5 {[%clk 0:01:44]} 35. a4 {[%clk 0:01:15]}  a6 {[%clk 0:01:43]} 36. Bd2 {[%clk 0:01:13]}  g4 {[%clk 0:01:43]} 37. Bg5 {[%clk 0:01:02]}  Bc7 {[%clk 0:01:41]} 38. Kc3 {[%clk 0:00:53]}  Bb8 {[%clk 0:01:21]} 39. Kd3 {[%clk 0:00:53]}  Bc7 {[%clk 0:01:21]} 40. Kc3 {[%clk 0:00:53]}  Ke4 {[%clk 0:01:19]} 41. Kc4 {[%clk 0:00:51]}  f4 {[%clk 0:01:18]} 42. gxf4 {[%clk 0:00:44]}  Bxf4 {[%clk 0:01:17]} 43. Bxf4 {[%clk 0:00:44]}  Kxf4 {[%clk 0:01:18]} 44. b5 {[%clk 0:00:44]}  axb5+ {[%clk 0:01:18]} 45. axb5 {[%clk 0:00:45]}  cxb5+ {[%clk 0:01:19]} 46. Kxb5 {[%clk 0:00:45]}  h4 {[%clk 0:01:20]} 47. c6 {[%clk 0:00:44]}  g3 {[%clk 0:01:20]} 48. hxg3+ {[%clk 0:00:45]}  hxg3 {[%clk 0:01:19]} 49. c7 {[%clk 0:00:45]}  g2 {[%clk 0:01:19]} 50. c8=Q {[%clk 0:00:45]}  g1=Q {[%clk 0:01:20]} 51. Qc5 {[%clk 0:00:39]}  Qb1+ {[%clk 0:01:11]} 52. Kc6 {[%clk 0:00:39]}  Ke4 {[%clk 0:00:59]} 53. Qe5+ {[%clk 0:00:36]}  Kf3 {[%clk 0:00:59]} 54. d5 {[%clk 0:00:36]}  Qc2+ {[%clk 0:00:58]} 55. Kd7 {[%clk 0:00:36]}  Qa4+ {[%clk 0:00:57]} 56. Ke7 {[%clk 0:00:37]}  Qa7+ {[%clk 0:00:57]} 57. Kf6 {[%clk 0:00:36]}  Kg4 {[%clk 0:00:49]} 58. d6 {[%clk 0:00:37]}  Qf2+ {[%clk 0:00:49]} 59. Ke7 {[%clk 0:00:36]}  Qa7+ {[%clk 0:00:42]} 60. d7 {[%clk 0:00:36]}  Qa3+ {[%clk 0:00:42]} 61. Qd6 {[%clk 0:00:36]}  Qa7 {[%clk 0:00:41]} 62. Ke8 {[%clk 0:00:35]}  Qe3+ {[%clk 0:00:41]} 63. Qe7 {[%clk 0:00:34]}  Qa7 {[%clk 0:00:37]} 64. d8=Q {[%clk 0:00:34]}  Qb8 {[%clk 0:00:38]} 65. Qxb8 {[%clk 0:00:33]} 1-0


[Site "https://www.chess.com"]

[Event "Titled Tuesday Blitz March 29 Late 2022"]
[White "Arabidze, Meri"]
[Black "Szente Varga, Fruzsina"]
[WhiteFideId "13604040"]
[BlackFideId "712264"]
[WhiteElo "2335"]
[BlackElo "1994"]
[Result "1-0"]
[Round "01"]
[TimeControl "180+1"]
[Date "2022.03.30"]
[WhiteClock "0:00:06"]
[BlackClock "0:00:11"]

1. Nf3 {[%clk 0:02:58]}  Nf6 {[%clk 0:02:54]} 2. g3 {[%clk 0:02:58]}  d5 {[%clk 0:02:51]} 3. Bg2 {[%clk 0:02:59]}  g6 {[%clk 0:02:50]} 4. O-O {[%clk 0:02:59]}  Bg7 {[%clk 0:02:51]} 5. b3 {[%clk 0:02:59]}  O-O {[%clk 0:02:50]} 6. Bb2 {[%clk 0:02:59]}  c5 {[%clk 0:02:35]} 7. c4 {[%clk 0:02:58]}  d4 {[%clk 0:02:32]} 8. b4 {[%clk 0:02:59]}  Nfd7 {[%clk 0:01:57]} 9. d3 {[%clk 0:02:55]}  e5 {[%clk 0:01:53]} 10. bxc5 {[%clk 0:02:53]}  Nxc5 {[%clk 0:01:54]} 11. Nbd2 {[%clk 0:02:53]}  Nc6 {[%clk 0:01:48]} 12. Nb3 {[%clk 0:02:48]}  Na4 {[%clk 0:01:43]} 13. Qc1 {[%clk 0:02:45]}  Nxb2 {[%clk 0:01:39]} 14. Qxb2 {[%clk 0:02:44]}  e4 {[%clk 0:01:14]} 15. dxe4 {[%clk 0:00:55]}  d3 {[%clk 0:01:14]} 16. e5 {[%clk 0:00:54]}  dxe2 {[%clk 0:01:13]} 17. Qxe2 {[%clk 0:00:54]}  Bg4 {[%clk 0:01:13]} 18. h3 {[%clk 0:00:47]}  Bxf3 {[%clk 0:01:05]} 19. Bxf3 {[%clk 0:00:48]}  Nxe5 {[%clk 0:00:57]} 20. Bxb7 {[%clk 0:00:48]}  Rb8 {[%clk 0:00:56]} 21. Bd5 {[%clk 0:00:48]}  Qc8 {[%clk 0:00:33]} 22. Kg2 {[%clk 0:00:43]}  Rb4 {[%clk 0:00:28]} 23. Rac1 {[%clk 0:00:42]}  h5 {[%clk 0:00:23]} 24. f4 {[%clk 0:00:36]}  Nc6 {[%clk 0:00:21]} 25. Rfe1 {[%clk 0:00:33]}  Ra4 {[%clk 0:00:20]} 26. Nc5 {[%clk 0:00:27]}  Ra5 {[%clk 0:00:19]} 27. Nb3 {[%clk 0:00:19]}  Ra3 {[%clk 0:00:19]} 28. Qf2 {[%clk 0:00:14]}  Qa6 {[%clk 0:00:19]} 29. Re2 {[%clk 0:00:11]}  Nb4 {[%clk 0:00:19]} 30. Nc5 {[%clk 0:00:10]}  Qa5 {[%clk 0:00:18]} 31. Nd7 {[%clk 0:00:11]}  Rd8 {[%clk 0:00:18]} 32. Ne5 {[%clk 0:00:11]}  Rxa2 {[%clk 0:00:17]} 33. Bxf7+ {[%clk 0:00:10]}  Kh7 {[%clk 0:00:16]} 34. Rxa2 {[%clk 0:00:11]}  Nxa2 {[%clk 0:00:16]} 35. Bxg6+ {[%clk 0:00:11]}  Kh8 {[%clk 0:00:17]} 36. Rc2 {[%clk 0:00:11]}  Nb4 {[%clk 0:00:16]} 37. Re2 {[%clk 0:00:10]}  Rf8 {[%clk 0:00:16]} 38. Qe3 {[%clk 0:00:09]}  Qc7 {[%clk 0:00:16]} 39. Bxh5 {[%clk 0:00:09]}  Qb7+ {[%clk 0:00:16]} 40. Qf3 {[%clk 0:00:08]}  Qc7 {[%clk 0:00:15]} 41. Bg6 {[%clk 0:00:08]}  Bxe5 {[%clk 0:00:15]} 42. Qh5+ {[%clk 0:00:08]}  Kg8 {[%clk 0:00:16]} 43. fxe5 {[%clk 0:00:06]}  Nc6 {[%clk 0:00:15]} 44. Be4 {[%clk 0:00:06]}  Nxe5 {[%clk 0:00:14]} 45. Bd5+ {[%clk 0:00:06]}  Nf7 {[%clk 0:00:14]} 46. Qg6+ {[%clk 0:00:06]}  Kh8 {[%clk 0:00:15]} 47. Re4 {[%clk 0:00:06]}  Nh6 {[%clk 0:00:11]} 48. Qxh6+ {[%clk 0:00:06]}  Qh7 {[%clk 0:00:11]} 49. Qxf8+ {[%clk 0:00:06]} 1-0


[Site "https://www.chess.com"]

[Event "Titled Tuesday Blitz March 29 Late 2022"]
[White "Ardila, Oscar Humberto"]
[Black "Jaferian, Koosha"]
[WhiteFideId "4404742"]
[BlackFideId "12507440"]
[WhiteElo "1966"]
[BlackElo "2030"]
[Result "0-1"]
[Round "01"]
[TimeControl "180+1"]
[Date "2022.03.30"]
[WhiteClock "0:00:04"]
[BlackClock "0:00:45"]

1. d4 {[%clk 0:02:48]}  f5 {[%clk 0:02:58]} 2. c4 {[%clk 0:02:48]}  Nf6 {[%clk 0:02:58]} 3. Nc3 {[%clk 0:02:48]}  g6 {[%clk 0:02:59]} 4. Nf3 {[%clk 0:02:34]}  Bg7 {[%clk 0:02:59]} 5. g3 {[%clk 0:02:23]}  O-O {[%clk 0:02:59]} 6. Bg2 {[%clk 0:02:24]}  d6 {[%clk 0:03:00]} 7. O-O {[%clk 0:02:24]}  Nc6 {[%clk 0:02:56]} 8. d5 {[%clk 0:02:24]}  Ne5 {[%clk 0:02:56]} 9. Nxe5 {[%clk 0:02:20]}  dxe5 {[%clk 0:02:56]} 10. b3 {[%clk 0:02:16]}  e4 {[%clk 0:02:49]} 11. Bb2 {[%clk 0:02:15]}  e6 {[%clk 0:02:47]} 12. dxe6 {[%clk 0:02:10]}  Bxe6 {[%clk 0:02:48]} 13. Qc2 {[%clk 0:02:10]}  Qe7 {[%clk 0:02:44]} 14. Rad1 {[%clk 0:02:08]}  Rfd8 {[%clk 0:02:42]} 15. Nb5 {[%clk 0:01:55]}  c6 {[%clk 0:02:35]} 16. Nd4 {[%clk 0:01:42]}  Bf7 {[%clk 0:02:35]} 17. e3 {[%clk 0:01:42]}  Nd7 {[%clk 0:02:29]} 18. Ne2 {[%clk 0:01:27]}  Nc5 {[%clk 0:02:20]} 19. Bxg7 {[%clk 0:01:26]}  Kxg7 {[%clk 0:02:21]} 20. h4 {[%clk 0:01:26]}  Nd3 {[%clk 0:02:21]} 21. Nf4 {[%clk 0:01:25]}  Ne5 {[%clk 0:02:17]} 22. Qc3 {[%clk 0:01:24]}  Qf6 {[%clk 0:02:18]} 23. Qb4 {[%clk 0:01:16]}  b6 {[%clk 0:02:11]} 24. Qa3 {[%clk 0:01:15]}  c5 {[%clk 0:02:11]} 25. Qa6 {[%clk 0:01:12]}  h6 {[%clk 0:02:07]} 26. Qb7 {[%clk 0:01:03]}  Kg8 {[%clk 0:01:50]} 27. Qc7 {[%clk 0:00:37]}  g5 {[%clk 0:01:45]} 28. hxg5 {[%clk 0:00:35]}  hxg5 {[%clk 0:01:46]} 29. Nd5 {[%clk 0:00:27]}  Bxd5 {[%clk 0:01:46]} 30. Rxd5 {[%clk 0:00:26]}  Nd3 {[%clk 0:01:21]} 31. Qb7 {[%clk 0:00:16]}  Nb2 {[%clk 0:01:00]} 32. Rfd1 {[%clk 0:00:13]}  Nxd1 {[%clk 0:01:00]} 33. Bf1 {[%clk 0:00:07]}  Nc3 {[%clk 0:00:57]} 34. Rxd8+ {[%clk 0:00:06]}  Rxd8 {[%clk 0:00:58]} 35. Qxa7 {[%clk 0:00:06]}  Qd6 {[%clk 0:00:55]} 36. Qb7 {[%clk 0:00:05]}  Rd7 {[%clk 0:00:51]} 37. Qc8+ {[%clk 0:00:05]}  Kg7 {[%clk 0:00:52]} 38. Qe8 {[%clk 0:00:05]}  Qe7 {[%clk 0:00:49]} 39. Qc8 {[%clk 0:00:04]}  Rd8 {[%clk 0:00:46]} 40. Qxf5 {[%clk 0:00:04]}  Qf6 {[%clk 0:00:46]} 41. Qg4 {[%clk 0:00:04]}  Rd2 {[%clk 0:00:45]} 42. Kg2 {[%clk 0:00:04]}  Qxf2+ {[%clk 0:00:45]} 0-1


[Site "https://www.chess.com"]

[Event "Titled Tuesday Blitz March 29 Late 2022"]
[White "Babazada, Khazar"]
[Black "Milosevic, Milos"]
[WhiteFideId "13413554"]
[BlackFideId "964875"]
[WhiteElo "2418"]
[BlackElo "2237"]
[Result "1-0"]
[Round "01"]
[TimeControl "180+1"]
[Date "2022.03.29"]
[WhiteClock "0:00:53"]
[BlackClock "0:00:01"]

1. Nf3 {[%clk 0:03:00]}  d5 {[%clk 0:02:51]} 2. c4 {[%clk 0:03:00]}  e6 {[%clk 0:02:50]} 3. b3 {[%clk 0:03:00]}  Qf6 {[%clk 0:02:46]} 4. Nc3 {[%clk 0:02:59]}  c6 {[%clk 0:02:43]} 5. Bb2 {[%clk 0:02:59]}  Na6 {[%clk 0:02:33]} 6. e3 {[%clk 0:02:49]}  Qd8 {[%clk 0:01:50]} 7. Be2 {[%clk 0:02:48]}  Nf6 {[%clk 0:01:50]} 8. O-O {[%clk 0:02:48]}  Bd6 {[%clk 0:01:48]} 9. d4 {[%clk 0:02:45]}  O-O {[%clk 0:01:48]} 10. Rc1 {[%clk 0:02:44]}  b6 {[%clk 0:01:48]} 11. cxd5 {[%clk 0:02:40]}  exd5 {[%clk 0:01:48]} 12. Bd3 {[%clk 0:02:36]}  Re8 {[%clk 0:01:42]} 13. Ne2 {[%clk 0:02:36]}  Ne4 {[%clk 0:01:31]} 14. Rxc6 {[%clk 0:02:30]}  Nb4 {[%clk 0:01:30]} 15. Rc1 {[%clk 0:02:25]}  Nxa2 {[%clk 0:01:20]} 16. Ra1 {[%clk 0:02:25]}  Nb4 {[%clk 0:01:20]} 17. Bb1 {[%clk 0:02:18]}  a5 {[%clk 0:01:08]} 18. Ng3 {[%clk 0:02:17]}  Ba6 {[%clk 0:01:02]} 19. Re1 {[%clk 0:02:16]}  Rc8 {[%clk 0:01:00]} 20. Ne5 {[%clk 0:02:09]}  Nxg3 {[%clk 0:00:20]} 21. hxg3 {[%clk 0:02:10]}  g6 {[%clk 0:00:19]} 22. e4 {[%clk 0:02:05]}  Bxe5 {[%clk 0:00:12]} 23. dxe5 {[%clk 0:02:03]}  dxe4 {[%clk 0:00:12]} 24. Bxe4 {[%clk 0:01:44]}  Bd3 {[%clk 0:00:12]} 25. Qf3 {[%clk 0:01:31]}  Bxe4 {[%clk 0:00:08]} 26. Rxe4 {[%clk 0:01:30]}  Rc2 {[%clk 0:00:07]} 27. Bd4 {[%clk 0:01:26]}  Nc6 {[%clk 0:00:07]} 28. Bc3 {[%clk 0:01:19]}  Qg5 {[%clk 0:00:04]} 29. Rae1 {[%clk 0:01:01]}  Rc1 {[%clk 0:00:04]} 30. e6 {[%clk 0:00:58]}  fxe6 {[%clk 0:00:03]} 31. Rxc1 {[%clk 0:00:53]}  Qxc1+ {[%clk 0:00:02]} 32. Re1 {[%clk 0:00:53]}  Qc2 {[%clk 0:00:01]} 33. Qxc6 {[%clk 0:00:51]}  Rf8 {[%clk 0:00:01]} 34. Qxe6+ {[%clk 0:00:51]}  Rf7 {[%clk 0:00:01]} 35. Qc8+ {[%clk 0:00:52]}  Rf8 {[%clk 0:00:01]} 36. Qc4+ {[%clk 0:00:52]}  Rf7 {[%clk 0:00:01]} 37. Re8# {[%clk 0:00:53]} 1-0


[Site "https://www.chess.com"]

[Event "Titled Tuesday Blitz March 29 Late 2022"]
[White "Bluebaum, Matthias"]
[Black "Rangel, Daniel"]
[WhiteFideId "24651516"]
[BlackFideId "2124475"]
[WhiteElo "2550"]
[BlackElo "2225"]
[Result "1-0"]
[Round "01"]
[TimeControl "180+1"]
[Date "2022.03.29"]
[WhiteClock "0:02:11"]
[BlackClock "0:00:10"]

1. b3 {[%clk 0:03:00]}  Nf6 {[%clk 0:02:55]} 2. Bb2 {[%clk 0:03:00]}  g6 {[%clk 0:02:55]} 3. Nf3 {[%clk 0:03:00]}  Bg7 {[%clk 0:02:55]} 4. g3 {[%clk 0:03:01]}  O-O {[%clk 0:02:56]} 5. Bg2 {[%clk 0:03:02]}  d5 {[%clk 0:02:53]} 6. c4 {[%clk 0:03:02]}  c5 {[%clk 0:02:41]} 7. cxd5 {[%clk 0:03:00]}  Qxd5 {[%clk 0:02:40]} 8. O-O {[%clk 0:02:59]}  Nc6 {[%clk 0:02:39]} 9. Ne5 {[%clk 0:02:57]}  Qd6 {[%clk 0:02:39]} 10. Nxc6 {[%clk 0:02:56]}  bxc6 {[%clk 0:02:39]} 11. Na3 {[%clk 0:02:57]}  Be6 {[%clk 0:02:34]} 12. Rc1 {[%clk 0:02:57]}  Bd5 {[%clk 0:02:27]} 13. Qc2 {[%clk 0:02:51]}  Bxg2 {[%clk 0:02:26]} 14. Kxg2 {[%clk 0:02:52]}  a5 {[%clk 0:02:24]} 15. Nc4 {[%clk 0:02:40]}  Qd5+ {[%clk 0:02:23]} 16. f3 {[%clk 0:02:40]}  a4 {[%clk 0:02:23]} 17. Nb6 {[%clk 0:02:40]}  axb3 {[%clk 0:01:30]} 18. axb3 {[%clk 0:02:38]}  Qe6 {[%clk 0:01:29]} 19. Nxa8 {[%clk 0:02:33]}  Rxa8 {[%clk 0:01:26]} 20. e4 {[%clk 0:02:29]}  Ra2 {[%clk 0:01:18]} 21. Ra1 {[%clk 0:02:29]}  Rxa1 {[%clk 0:00:38]} 22. Rxa1 {[%clk 0:02:30]}  h5 {[%clk 0:00:38]} 23. Ra8+ {[%clk 0:02:19]}  Kh7 {[%clk 0:00:36]} 24. Qc4 {[%clk 0:02:20]}  Qd7 {[%clk 0:00:25]} 25. Bc3 {[%clk 0:02:20]}  e6 {[%clk 0:00:20]} 26. Qxc5 {[%clk 0:02:16]}  Qd3 {[%clk 0:00:19]} 27. Qe3 {[%clk 0:02:12]}  Qc2 {[%clk 0:00:18]} 28. b4 {[%clk 0:02:12]}  h4 {[%clk 0:00:17]} 29. gxh4 {[%clk 0:02:10]}  Nh5 {[%clk 0:00:13]} 30. Bxg7 {[%clk 0:02:10]}  Kxg7 {[%clk 0:00:12]} 31. Qc3+ {[%clk 0:02:10]}  Qxc3 {[%clk 0:00:10]} 32. dxc3 {[%clk 0:02:11]} 1-0


[Site "https://www.chess.com"]

[Event "Titled Tuesday Blitz March 29 Late 2022"]
[White "Bogumil, Tatiana"]
[Black "Romanchuk, Viktor"]
[WhiteFideId "4110579"]
[BlackFideId "14109271"]
[WhiteElo "1761"]
[BlackElo "2242"]
[Result "0-1"]
[Round "01"]
[TimeControl "180+1"]
[Date "2022.03.30"]
[WhiteClock "0:00:02"]
[BlackClock "0:00:25"]

1. Nf3 {[%clk 0:02:46]}  d5 {[%clk 0:02:57]} 2. c4 {[%clk 0:02:46]}  c6 {[%clk 0:02:57]} 3. b3 {[%clk 0:02:44]}  Nf6 {[%clk 0:02:53]} 4. Bb2 {[%clk 0:02:44]}  Bf5 {[%clk 0:02:54]} 5. g3 {[%clk 0:02:44]}  e6 {[%clk 0:02:54]} 6. Bg2 {[%clk 0:02:45]}  Nbd7 {[%clk 0:02:55]} 7. O-O {[%clk 0:02:45]}  h6 {[%clk 0:02:55]} 8. d3 {[%clk 0:02:46]}  Bh7 {[%clk 0:02:56]} 9. Nbd2 {[%clk 0:02:46]}  Bc5 {[%clk 0:02:56]} 10. a3 {[%clk 0:02:46]}  a5 {[%clk 0:02:55]} 11. h3 {[%clk 0:02:42]}  Qe7 {[%clk 0:02:52]} 12. Re1 {[%clk 0:02:41]}  O-O {[%clk 0:02:50]} 13. e4 {[%clk 0:02:41]}  dxe4 {[%clk 0:02:51]} 14. dxe4 {[%clk 0:02:41]}  e5 {[%clk 0:02:51]} 15. Qc2 {[%clk 0:02:31]}  Nh5 {[%clk 0:02:38]} 16. Nf1 {[%clk 0:02:22]}  Ndf6 {[%clk 0:02:23]} 17. Nh4 {[%clk 0:02:14]}  Rfe8 {[%clk 0:02:08]} 18. Ne3 {[%clk 0:02:07]}  Rad8 {[%clk 0:02:00]} 19. Nhf5 {[%clk 0:02:05]}  Qc7 {[%clk 0:02:00]} 20. Bc3 {[%clk 0:02:00]}  Bd4 {[%clk 0:01:56]} 21. b4 {[%clk 0:01:49]}  axb4 {[%clk 0:01:52]} 22. axb4 {[%clk 0:01:49]}  Bxf5 {[%clk 0:01:34]} 23. Nxf5 {[%clk 0:01:41]}  Bxc3 {[%clk 0:01:34]} 24. Qxc3 {[%clk 0:01:41]}  Nd7 {[%clk 0:01:34]} 25. c5 {[%clk 0:01:39]}  Nf8 {[%clk 0:01:26]} 26. Nd6 {[%clk 0:01:35]}  Re7 {[%clk 0:01:26]} 27. Ra7 {[%clk 0:01:29]}  Qb8 {[%clk 0:01:26]} 28. Rea1 {[%clk 0:01:26]}  Nf6 {[%clk 0:01:27]} 29. Ra8 {[%clk 0:01:08]}  Qxa8 {[%clk 0:01:23]} 30. Rxa8 {[%clk 0:01:08]}  Rxa8 {[%clk 0:01:24]} 31. Bf1 {[%clk 0:01:00]}  Ne8 {[%clk 0:01:23]} 32. Nc4 {[%clk 0:00:57]}  Ra1 {[%clk 0:01:17]} 33. Kg2 {[%clk 0:00:57]}  Ra8 {[%clk 0:01:12]} 34. Nxe5 {[%clk 0:00:53]}  Nf6 {[%clk 0:01:02]} 35. f3 {[%clk 0:00:48]}  Rae8 {[%clk 0:00:59]} 36. Nc4 {[%clk 0:00:45]}  Ne6 {[%clk 0:00:58]} 37. Nd6 {[%clk 0:00:41]}  Rd8 {[%clk 0:00:59]} 38. Bc4 {[%clk 0:00:41]}  Ne8 {[%clk 0:00:59]} 39. e5 {[%clk 0:00:36]}  b6 {[%clk 0:00:55]} 40. Bxe6 {[%clk 0:00:32]}  Rxe6 {[%clk 0:00:51]} 41. f4 {[%clk 0:00:28]}  bxc5 {[%clk 0:00:50]} 42. bxc5 {[%clk 0:00:27]}  Re7 {[%clk 0:00:48]} 43. Qa5 {[%clk 0:00:17]}  Rb8 {[%clk 0:00:44]} 44. Qa6 {[%clk 0:00:14]}  Nc7 {[%clk 0:00:36]} 45. Qxc6 {[%clk 0:00:13]}  Ne6 {[%clk 0:00:37]} 46. Qd5 {[%clk 0:00:09]}  Rc7 {[%clk 0:00:32]} 47. Ne4 {[%clk 0:00:06]}  Rd8 {[%clk 0:00:31]} 48. Qc4 {[%clk 0:00:05]}  Rd4 {[%clk 0:00:30]} 49. Qe2 {[%clk 0:00:06]}  Nxc5 {[%clk 0:00:28]} 50. Nxc5 {[%clk 0:00:05]}  Rxc5 {[%clk 0:00:29]} 51. h4 {[%clk 0:00:05]}  Rdc4 {[%clk 0:00:28]} 52. Qe3 {[%clk 0:00:04]}  Rc3 {[%clk 0:00:28]} 53. Qe4 {[%clk 0:00:05]}  Rc6 {[%clk 0:00:28]} 54. h5 {[%clk 0:00:03]}  Ra6 {[%clk 0:00:26]} 55. Qd5 {[%clk 0:00:02]}  Raa3 {[%clk 0:00:25]} 0-1


[Site "https://www.chess.com"]

[Event "Titled Tuesday Blitz March 29 Late 2022"]
[White "Bryakin, Mikhail"]
[Black "Gracia Alvarez, Gerardo Antonio"]
[WhiteFideId "4165314"]
[BlackFideId "5109124"]
[WhiteElo "2417"]
[BlackElo "2139"]
[Result "0-1"]
[Round "01"]
[TimeControl "180+1"]
[Date "2022.03.30"]
[WhiteClock "0:01:25"]
[BlackClock "0:00:20"]

1. e4 {[%clk 0:03:00]}  c5 {[%clk 0:02:59]} 2. Nf3 {[%clk 0:02:55]}  Nc6 {[%clk 0:03:00]} 3. Bb5 {[%clk 0:02:53]}  d6 {[%clk 0:02:59]} 4. Bxc6+ {[%clk 0:02:52]}  bxc6 {[%clk 0:02:59]} 5. d3 {[%clk 0:02:53]}  e5 {[%clk 0:02:58]} 6. O-O {[%clk 0:02:52]}  f5 {[%clk 0:02:58]} 7. Nc3 {[%clk 0:02:49]}  Nf6 {[%clk 0:02:55]} 8. a4 {[%clk 0:02:47]}  Be7 {[%clk 0:02:52]} 9. h3 {[%clk 0:02:41]}  O-O {[%clk 0:02:51]} 10. b3 {[%clk 0:02:39]}  Qe8 {[%clk 0:02:40]} 11. Nd2 {[%clk 0:02:25]}  Nh5 {[%clk 0:02:31]} 12. Nc4 {[%clk 0:02:24]}  Qg6 {[%clk 0:02:22]} 13. Kh2 {[%clk 0:02:22]}  fxe4 {[%clk 0:01:53]} 14. dxe4 {[%clk 0:02:18]}  Be6 {[%clk 0:01:41]} 15. Be3 {[%clk 0:02:17]}  Rad8 {[%clk 0:01:34]} 16. Na5 {[%clk 0:02:11]}  Bd7 {[%clk 0:01:19]} 17. f3 {[%clk 0:01:59]}  Qg3+ {[%clk 0:01:15]} 18. Kh1 {[%clk 0:01:59]}  Bxh3 {[%clk 0:01:14]} 19. gxh3 {[%clk 0:01:53]}  Qxh3+ {[%clk 0:01:15]} 20. Kg1 {[%clk 0:01:53]}  Qg3+ {[%clk 0:01:15]} 21. Kh1 {[%clk 0:01:54]}  Qh3+ {[%clk 0:01:15]} 22. Kg1 {[%clk 0:01:54]}  Rf6 {[%clk 0:00:38]} 23. Nxc6 {[%clk 0:01:29]}  Qg3+ {[%clk 0:00:26]} 24. Kh1 {[%clk 0:01:29]}  Qh4+ {[%clk 0:00:22]} 25. Kg1 {[%clk 0:01:24]}  Rg6+ {[%clk 0:00:20]} 26. Bg5 {[%clk 0:01:25]}  Rxg5# {[%clk 0:00:20]} 0-1


[Site "https://www.chess.com"]

[Event "Titled Tuesday Blitz March 29 Late 2022"]
[White "Cervantes Landeiro, Thalia"]
[Black "Shimanov, Aleksandr"]
[WhiteFideId "3520498"]
[BlackFideId "4198603"]
[WhiteElo "2021"]
[BlackElo "2636"]
[Result "0-1"]
[Round "01"]
[TimeControl "180+1"]
[Date "2022.03.29"]
[WhiteClock "0:00:10"]
[BlackClock "0:01:21"]

1. d4 {[%clk 0:03:00]}  Nf6 {[%clk 0:02:48]} 2. c4 {[%clk 0:02:59]}  e6 {[%clk 0:02:48]} 3. Nf3 {[%clk 0:02:57]}  d5 {[%clk 0:02:48]} 4. Nc3 {[%clk 0:02:56]}  Nbd7 {[%clk 0:02:46]} 5. cxd5 {[%clk 0:02:50]}  exd5 {[%clk 0:02:46]} 6. Bf4 {[%clk 0:02:40]}  c6 {[%clk 0:02:42]} 7. e3 {[%clk 0:02:38]}  Be7 {[%clk 0:02:41]} 8. Bd3 {[%clk 0:02:38]}  Nh5 {[%clk 0:02:41]} 9. Bg3 {[%clk 0:02:32]}  O-O {[%clk 0:02:36]} 10. Qc2 {[%clk 0:02:28]}  g6 {[%clk 0:02:36]} 11. O-O {[%clk 0:02:19]}  Nxg3 {[%clk 0:02:36]} 12. hxg3 {[%clk 0:02:19]}  Bd6 {[%clk 0:02:35]} 13. e4 {[%clk 0:02:04]}  dxe4 {[%clk 0:02:34]} 14. Bxe4 {[%clk 0:02:03]}  Nf6 {[%clk 0:02:33]} 15. d5 {[%clk 0:01:34]}  c5 {[%clk 0:02:28]} 16. Rad1 {[%clk 0:01:29]}  Bd7 {[%clk 0:02:26]} 17. Bd3 {[%clk 0:01:23]}  a6 {[%clk 0:02:25]} 18. a4 {[%clk 0:01:22]}  Rb8 {[%clk 0:02:21]} 19. b3 {[%clk 0:01:13]}  b5 {[%clk 0:02:20]} 20. axb5 {[%clk 0:01:13]}  axb5 {[%clk 0:02:21]} 21. Rfe1 {[%clk 0:01:06]}  Qb6 {[%clk 0:01:59]} 22. Ne5 {[%clk 0:00:56]}  Bxe5 {[%clk 0:01:56]} 23. Rxe5 {[%clk 0:00:56]}  Rfc8 {[%clk 0:01:55]} 24. Qe2 {[%clk 0:00:42]}  c4 {[%clk 0:01:48]} 25. bxc4 {[%clk 0:00:37]}  bxc4 {[%clk 0:01:49]} 26. Bc2 {[%clk 0:00:36]}  Bg4 {[%clk 0:01:48]} 27. Qe3 {[%clk 0:00:19]}  Bxd1 {[%clk 0:01:45]} 28. Bxd1 {[%clk 0:00:20]}  Qxe3 {[%clk 0:01:42]} 29. Rxe3 {[%clk 0:00:15]}  Rb2 {[%clk 0:01:26]} 30. Bf3 {[%clk 0:00:13]}  Rd2 {[%clk 0:01:23]} 31. Re7 {[%clk 0:00:12]}  Rd3 {[%clk 0:01:22]} 32. Nb5 {[%clk 0:00:10]}  c3 {[%clk 0:01:21]} 0-1


[Site "https://www.chess.com"]